bitfinex-derivatives/quotes_BTCF0:USTF0_20250614
["timestamp","ask_amount","ask_price","bid_price","bid_amount"]
[1749909270318,0.60960349,105100.0,105090.0,1.30398661]
[1749909270911,0.61260349,105100.0,105090.0,1.30398661]
[1749909272019,0.11260349,105100.0,105090.0,1.30398661]
[1749909272222,0.11260349,105100.0,105090.0,2.26330661]
[1749909272720,0.11260349,105100.0,105090.0,2.32231224]
[1749909273721,0.11260349,105100.0,105090.0,2.3223109]
[1749909274512,0.11674184,105100.0,105090.0,2.26330661]
[1749909280515,0.30695094,105100.0,105090.0,2.08951897]
[1749909280716,0.5704122,105100.0,105090.0,0.25005463]
[1749909281018,0.5704122,105100.0,105090.0,1.15010091]
[1749909281230,0.5704122,105100.0,105090.0,1.19444607]
[1749909281425,0.36835094,105100.0,105090.0,1.19444607]
[1749909282027,0.36835094,105100.0,105090.0,0.41704607]
[1749909282331,0.36835094,105100.0,105090.0,1.19444607]
[1749909282528,0.36835094,105100.0,105090.0,1.19440607]
[1749909282929,0.36835094,105100.0,105090.0,0.41704607]
[1749909283130,1.2512122,105100.0,105090.0,0.04509897]
[1749909283325,1.4312122,105100.0,105090.0,1.00417897]
[1749909284124,1.4312122,105100.0,105090.0,1.19440617]
[1749909284637,1.4312122,105100.0,105090.0,1.00421897]
[1749909284835,1.4312122,105100.0,105090.0,1.19444617]
[1749909285037,1.4312122,105100.0,105090.0,0.41704617]
[1749909285340,1.4312122,105100.0,105090.0,1.19444617]
[1749909285940,1.4312122,105100.0,105090.0,1.00421897]
[1749909286141,1.4312122,105100.0,105090.0,1.15010101]
[1749909286342,1.4312122,105100.0,105090.0,0.37270101]
[1749909286641,1.4312122,105100.0,105090.0,1.15085482]
[1749909287335,1.4312122,105100.0,105090.0,0.96062762]
[1749909288748,1.7512122,105100.0,105090.0,0.18322762]
[1749909289048,2.14560102,105100.0,105090.0,0.18322762]
[1749909289446,2.14560102,105100.0,105090.0,0.00150762]
[1749909290842,0.2853478,105090.0,105080.0,0.18176]
[1749909291045,0.1902453,105080.0,105070.0,0.22624771]
[1749909291250,0.81800656,105080.0,105070.0,0.95930255]
[1749909293153,0.6159453,105080.0,105070.0,0.96130255]
[1749909293354,0.6159453,105080.0,105070.0,1.15164595]
[1749909293548,0.6159453,105080.0,105070.0,1.50414595]
[1749909294048,0.2551453,105080.0,105070.0,1.86494595]
[1749909294451,0.2551453,105080.0,105070.0,1.86394595]
[1749909295453,0.1902453,105080.0,105070.0,1.89424595]
[1749909295841,0.6902453,105080.0,105070.0,1.89424595]
[1749909296046,0.6932453,105080.0,105070.0,2.09530721]
[1749909296551,0.6912453,105080.0,105070.0,2.09530721]
[1749909297360,0.6912453,105080.0,105070.0,1.89324595]
[1749909297654,0.6912453,105080.0,105070.0,1.57324595]
[1749909297856,0.7515453,105080.0,105070.0,1.57324595]
[1749909301856,0.7515453,105080.0,105070.0,1.21244595]
[1749909304253,0.7214453,105080.0,105070.0,1.21244595]
[1749909304955,0.92350656,105080.0,105070.0,1.21244595]
[1749909306150,1.28844491,105080.0,105070.0,0.06294255]
[1749909306355,1.31924491,105080.0,105070.0,1.21232595]
[1749909307960,1.28844491,105080.0,105070.0,1.21232605]
[1749909308551,1.28844491,105080.0,105070.0,1.25667121]
[1749909309857,1.08638365,105080.0,105070.0,1.25667121]
[1749909310052,1.28844491,105080.0,105070.0,1.25667121]
[1749909312659,1.28844491,105080.0,105070.0,1.06640771]
[1749909313558,1.28844491,105080.0,105070.0,1.25667111]
[1749909314563,1.28844491,105080.0,105070.0,1.31574473]
[1749909314865,1.34768173,105080.0,105070.0,1.25667111]
[1749909315058,1.28844491,105080.0,105070.0,1.31574473]
[1749909315551,1.34768173,105080.0,105070.0,1.31574473]
[1749909316263,1.28844491,105080.0,105070.0,1.12548133]
[1749909316464,1.28844491,105080.0,105070.0,1.31574473]
[1749909316767,1.34768173,105080.0,105070.0,1.31574473]
[1749909317966,1.34768173,105080.0,105070.0,1.12548133]
[1749909318358,1.34768173,105080.0,105070.0,1.31574463]
[1749909318557,1.34768173,105080.0,105070.0,1.27139947]
[1749909318759,1.34768173,105080.0,105070.0,1.31598302]
[1749909318959,1.34768173,105080.0,105070.0,1.12571972]
[1749909319360,1.35768173,105080.0,105070.0,1.12571972]
[1749909319559,1.35768173,105080.0,105070.0,0.13629972]
[1749909319763,1.37988173,105080.0,105070.0,0.28547972]
[1749909320060,1.38988173,105080.0,105070.0,0.28547972]
[1749909320264,1.41950015,105080.0,105070.0,0.0447261]
[1749909322264,1.47891806,105080.0,105070.0,0.0447261]
[1749909322468,1.46891806,105080.0,105070.0,0.0447261]
[1749909322662,1.40950015,105080.0,105070.0,0.00014255]
[1749909322863,1.76950015,105080.0,105070.0,0.00014255]
[1749909327370,1.80200015,105080.0,105070.0,0.00014255]
[1749909333976,2.57932015,105080.0,105070.0,0.00014255]
[1749909335576,2.76092015,105080.0,105070.0,0.00014255]
[1749909335777,2.82028401,105080.0,105070.0,0.00014255]
[1749909337680,2.82028885,105080.0,105070.0,0.00014255]
[1749909338676,2.82028885,105080.0,105070.0,0.03094255]
[1749909339581,1.98356015,105080.0,105070.0,0.03094255]
[1749909339987,1.78149889,105080.0,105070.0,0.03094255]
[1749909340284,1.98356015,105080.0,105070.0,0.03094255]
[1749909343980,1.98356015,105080.0,105070.0,0.06144255]
[1749909345183,2.00899609,105080.0,105070.0,0.06144255]
[1749909347987,2.00899609,105080.0,105070.0,0.09264255]
[1749909349290,2.00899609,105080.0,105070.0,0.1372261]
[1749909350679,1.97649609,105080.0,105070.0,0.1372261]
[1749909352985,1.74899889,105080.0,105070.0,0.1372261]
[1749909353190,1.97649609,105080.0,105070.0,0.1372261]
[1749909355393,1.97649609,105080.0,105070.0,0.1060261]
[1749909355692,2.00719609,105080.0,105070.0,0.1060261]
[1749909357800,2.00719609,105080.0,105070.0,0.0447261]
[1749909360696,0.20698084,105070.0,105060.0,0.32155281]
[1749909360996,0.91453529,105070.0,105060.0,0.32117648]
[1749909361193,0.94553529,105070.0,105060.0,0.32117648]
[1749909361497,1.25553529,105070.0,105060.0,0.32117648]
[1749909361793,0.94553529,105070.0,105060.0,0.32117648]
[1749909362298,0.94553529,105070.0,105060.0,0.32217648]
[1749909362490,1.41453529,105070.0,105060.0,0.32217648]
[1749909362796,1.41453529,105070.0,105060.0,0.14073648]
[1749909363694,1.42402374,105070.0,105060.0,0.14173648]
[1749909364299,1.42402374,105070.0,105060.0,0.14073648]
[1749909364498,1.42502374,105070.0,105060.0,0.13973648]
[1749909365903,1.42916209,105070.0,105060.0,0.13973648]
[1749909367295,1.48855786,105070.0,105060.0,0.13973648]
[1749909367502,1.79855786,105070.0,105060.0,0.13973648]
[1749909367801,1.42916209,105070.0,105060.0,0.09512367]
[1749909368102,0.1902816,105060.0,105050.0,1.06313617]
[1749909368291,1.06546884,105060.0,105050.0,1.15953617]
[1749909369300,1.06546884,105060.0,105050.0,1.16053617]
[1749909370302,1.06546884,105060.0,105050.0,1.16153617]
[1749909371903,1.14204515,105060.0,105050.0,1.16153617]
[1749909372304,1.56546884,105060.0,105050.0,1.16153617]
[1749909372503,1.33797164,105060.0,105050.0,1.16153617]
[1749909372906,1.56546884,105060.0,105050.0,1.16153617]
[1749909374613,1.33797164,105060.0,105050.0,1.16153617]
[1749909375409,1.56546884,105060.0,105050.0,1.16153617]
[1749909375609,1.56546884,105060.0,105050.0,1.10246255]
[1749909376210,3.06546884,105060.0,105050.0,1.10246255]
[1749909376408,2.83797164,105060.0,105050.0,1.10246255]
[1749909376609,2.83797164,105060.0,105050.0,0.27998255]
[1749909377010,2.9140713,105060.0,105050.0,0.47028225]
[1749909377209,2.9140713,105060.0,105050.0,0.33905617]
[1749909377606,2.9140713,105060.0,105050.0,0.27998255]
[1749909379512,2.9140713,105060.0,105050.0,0.33905617]
[1749909380415,2.85467846,105060.0,105050.0,0.33905617]
[1749909380715,2.85467846,105060.0,105050.0,0.27998255]
[1749909381215,2.85881681,105060.0,105050.0,0.27998255]
[1749909381918,2.91819516,105060.0,105050.0,0.33940835]
[1749909382712,2.91819516,105060.0,105050.0,0.52970805]
[1749909382918,2.91819516,105060.0,105050.0,0.33940835]
[1749909384025,2.69069796,105060.0,105050.0,0.52970795]
[1749909384212,2.91819516,105060.0,105050.0,0.52970795]
[1749909387222,2.91819516,105060.0,105050.0,0.33940835]
[1749909391724,2.69069796,105060.0,105050.0,0.33940835]
[1749909392026,2.91819516,105060.0,105050.0,0.33940835]
[1749909393518,2.95049516,105060.0,105050.0,0.33940835]
[1749909402932,2.95049516,105060.0,105050.0,0.52970795]
[1749909403228,2.72299796,105060.0,105050.0,0.52970795]
[1749909403424,2.58969516,105060.0,105050.0,0.75720515]
[1749909403830,2.58969516,105060.0,105050.0,0.61825229]
[1749909404437,2.58969516,105060.0,105050.0,0.84574949]
[1749909408437,2.58969516,105060.0,105050.0,0.75720515]
[1749909408644,2.58969516,105060.0,105050.0,0.61825229]
[1749909409145,2.58969516,105060.0,105050.0,0.52970795]
[1749909409942,2.58969516,105060.0,105050.0,0.61825229]
[1749909410142,2.58969516,105060.0,105050.0,0.52970795]
[1749909410343,2.58969516,105060.0,105050.0,0.61825229]
[1749909411142,2.58969516,105060.0,105050.0,0.52970795]
[1749909414351,2.58969516,105060.0,105050.0,0.33940835]
[1749909417452,2.95049516,105060.0,105050.0,0.33940835]
[1749909421956,2.98249516,105060.0,105050.0,0.33940835]
[1749909426654,2.72299796,105060.0,105050.0,0.52970795]
[1749909426856,2.58969516,105060.0,105050.0,0.52970795]
[1749909427052,2.58969516,105060.0,105050.0,0.56690555]
[1749909427553,2.58969516,105060.0,105050.0,0.75720515]
[1749909429662,2.58969516,105060.0,105050.0,0.52970795]
[1749909433065,2.58969516,105060.0,105050.0,0.61825229]
[1749909433264,2.58969516,105060.0,105050.0,0.52970795]
[1749909434865,2.58969516,105060.0,105050.0,0.75720515]
[1749909437167,0.82989796,105060.0,105050.0,1.13574949]
[1749909437368,0.69441975,105060.0,105050.0,1.43712369]
[1749909437569,0.69441975,105060.0,105050.0,1.46740932]
[1749909439570,0.69441975,105060.0,105050.0,1.34857935]
[1749909441470,0.69441975,105060.0,105050.0,1.43766535]
[1749909442668,0.50413835,105060.0,105050.0,1.43766535]
[1749909442872,0.50413835,105060.0,105050.0,1.34857935]
[1749909443071,0.50413835,105060.0,105050.0,1.46740932]
[1749909443373,0.50413835,105060.0,105050.0,1.48443343]
[1749909443567,0.00413835,105060.0,105050.0,1.82962543]
[1749909443869,0.00014255,105070.0,105060.0,0.1902815]
[1749909444073,0.19040595,105070.0,105060.0,3.13602432]
[1749909444773,0.69040595,105070.0,105060.0,3.13602432]
[1749909446074,0.69040595,105070.0,105060.0,3.13702432]
[1749909446275,0.69140595,105070.0,105060.0,3.13702432]
[1749909446969,0.69140595,105070.0,105060.0,3.23220032]
[1749909447175,0.69040595,105070.0,105060.0,3.23211407]
[1749909447375,0.69040595,105070.0,105060.0,3.14415183]
[1749909447574,0.69040595,105070.0,105060.0,3.2330933]
[1749909450478,0.69040595,105070.0,105060.0,3.0055961]
[1749909453179,0.69040595,105070.0,105060.0,2.9104201]
[1749909454982,0.19040595,105070.0,105060.0,2.9104201]
[1749909455475,0.1945443,105070.0,105060.0,2.9104201]
[1749909456181,0.1945443,105070.0,105060.0,3.1379173]
[1749909456781,0.1945443,105070.0,105060.0,2.6829229]
[1749909457080,0.1945443,105070.0,105060.0,3.1379173]
[1749909463084,0.1945443,105070.0,105060.0,3.04897583]
[1749909463284,0.0042809,105070.0,105060.0,3.04897583]
[1749909463485,0.0042809,105070.0,105060.0,3.1678058]
[1749909466888,0.1945442,105070.0,105060.0,3.1678058]
[1749909467088,0.0042809,105070.0,105060.0,3.1678058]
[1749909467788,0.1945442,105070.0,105060.0,3.1678058]
[1749909467988,0.1945442,105070.0,105060.0,3.1668058]
[1749909468289,0.1945442,105070.0,105060.0,3.1688058]
[1749909469190,0.1945442,105070.0,105060.0,3.1698058]
[1749909473692,0.4220414,105070.0,105060.0,1.83639147]
[1749909473893,0.5151414,105070.0,105060.0,2.6743215]
[1749909474095,0.5151414,105070.0,105060.0,1.61643828]
[1749909474293,0.5151414,105070.0,105060.0,2.02485548]
[1749909474493,0.5151414,105070.0,105060.0,2.99097698]
[1749909474894,0.8759414,105070.0,105060.0,1.25547828]
[1749909475093,0.95238036,105070.0,105060.0,1.13292588]
[1749909475291,1.29438036,105070.0,105060.0,1.88411875]
[1749909475495,1.26438036,105070.0,105060.0,1.82467115]
[1749909475689,0.95438036,105070.0,105060.0,1.82467115]
[1749909475996,0.95438036,105070.0,105060.0,0.86691115]
[1749909476385,0.95438036,105070.0,105060.0,1.82367115]
[1749909476589,1.33438036,105070.0,105060.0,1.82367115]
[1749909476901,1.33538036,105070.0,105060.0,1.82367115]
[1749909478095,1.33538036,105070.0,105060.0,1.77908]
[1749909478291,1.33538036,105070.0,105060.0,0.95676]
[1749909479398,0.95538036,105070.0,105060.0,0.95676]
[1749909480296,1.31538036,105070.0,105060.0,0.95676]
[1749909480498,0.95538036,105070.0,105060.0,0.95676]
[1749909482197,1.25600201,105070.0,105060.0,0.95676]
[1749909482495,0.89600201,105070.0,105060.0,0.95676]
[1749909482904,1.20600201,105070.0,105060.0,0.95676]
[1749909483103,0.89600201,105070.0,105060.0,0.95676]
[1749909484492,0.89600201,105070.0,105060.0,0.18092]
[1749909484800,0.89600201,105070.0,105060.0,0.3712015]
[1749909485400,0.89600201,105070.0,105060.0,0.5986987]
[1749909485603,1.39600201,105070.0,105060.0,0.5986987]
[1749909485802,1.39600201,105070.0,105060.0,0.3712015]
[1749909486102,1.39600201,105070.0,105060.0,0.5986987]
[1749909486601,1.39500201,105070.0,105060.0,0.5986987]
[1749909487402,1.39500201,105070.0,105060.0,0.9786987]
[1749909487606,1.39500201,105070.0,105060.0,1.0425987]
[1749909487800,1.39500201,105070.0,105060.0,0.6625987]
[1749909487999,1.39500201,105070.0,105060.0,0.9825987]
[1749909488404,1.39500201,105070.0,105060.0,1.02708206]
[1749909488601,1.03420201,105070.0,105060.0,0.9825987]
[1749909488807,1.03420201,105070.0,105060.0,1.02708206]
[1749909489506,1.00290201,105070.0,105060.0,1.02708206]
[1749909490609,1.36370201,105070.0,105060.0,0.9825987]
[1749909490996,1.36370201,105070.0,105060.0,0.6625987]
[1749909492708,1.36370201,105070.0,105060.0,0.4351015]
[1749909492910,1.36370201,105070.0,105060.0,0.6625987]
[1749909493209,1.36370201,105070.0,105060.0,0.70708206]
[1749909495211,1.13620481,105070.0,105060.0,0.70708206]
[1749909495409,1.36370201,105070.0,105060.0,0.70708206]
[1749909496510,1.33310201,105070.0,105060.0,0.70708206]
[1749909497411,1.30190201,105070.0,105060.0,0.70708206]
[1749909497604,1.30190201,105070.0,105060.0,0.73928206]
[1749909499009,1.30190201,105070.0,105060.0,0.51178486]
[1749909499217,1.30190201,105070.0,105060.0,0.73928206]
[1749909499403,1.33460201,105070.0,105060.0,0.73928206]
[1749909499604,1.10710481,105070.0,105060.0,0.73928206]
[1749909499804,1.33460201,105070.0,105060.0,0.73928206]
[1749909502513,1.39398036,105070.0,105060.0,0.79872966]
[1749909506418,1.16648316,105070.0,105060.0,0.7542463]
[1749909506720,1.33460201,105070.0,105060.0,0.6947987]
[1749909507127,1.30190201,105070.0,105060.0,0.6947987]
[1749909508713,1.30190201,105070.0,105060.0,1.0647987]
[1749909509019,0.94110201,105070.0,105060.0,1.0647987]
[1749909510122,0.71360481,105070.0,105060.0,1.8872787]
[1749909510521,0.71360481,105070.0,105060.0,2.2480787]
[1749909511120,0.94110201,105070.0,105060.0,2.2480787]
[1749909515924,0.6965442,105070.0,105060.0,2.2480787]
[1749909517627,0.9240414,105070.0,105060.0,2.2480787]
[1749909520435,0.9240414,105070.0,105060.0,2.39668423]
[1749909527235,0.9240414,105070.0,105060.0,2.05668423]
[1749909527436,0.9240414,105070.0,105060.0,2.36668423]
[1749909532136,0.9240414,105070.0,105060.0,2.30724202]
[1749909539254,0.9240414,105070.0,105060.0,2.12632202]
[1749909539449,0.9240414,105070.0,105060.0,3.08220202]
[1749909546258,0.6965442,105070.0,105060.0,3.08220202]
[1749909547660,0.9240414,105070.0,105060.0,3.08220202]
[1749909558973,0.9240414,105070.0,105060.0,3.08180202]
[1749909561774,1.3163414,105070.0,105060.0,2.39736472]
[1749909561972,1.3483414,105070.0,105060.0,2.39736472]
[1749909562175,1.40776962,105070.0,105060.0,2.39736472]
[1749909562471,1.40776962,105070.0,105060.0,2.4568488]
[1749909562673,1.40776962,105070.0,105060.0,2.684346]
[1749909562874,1.40776962,105070.0,105060.0,2.715246]
[1749909567181,1.40776962,105070.0,105060.0,2.4877488]
[1749909570681,1.40776962,105070.0,105060.0,2.5206488]
[1749909571783,1.04696962,105070.0,105060.0,2.5206488]
[1749909571987,1.40776962,105070.0,105060.0,2.5206488]
[1749909572283,1.37576962,105070.0,105060.0,2.5206488]
[1749909573281,1.37576962,105070.0,105060.0,2.5204888]
[1749909574187,1.01496962,105070.0,105060.0,2.5204888]
[1749909574386,1.3163414,105070.0,105060.0,2.5204888]
[1749909575087,1.0888442,105070.0,105060.0,2.5204888]
[1749909575389,0.9555414,105070.0,105060.0,2.747986]
[1749909575591,0.9555414,105070.0,105060.0,2.779786]
[1749909576483,0.9240414,105070.0,105060.0,2.779786]
[1749909578994,0.9240414,105070.0,105060.0,2.5522888]
[1749909579193,0.9240414,105070.0,105060.0,2.779786]
[1749909581895,0.9240414,105070.0,105060.0,1.957306]
[1749909582486,0.9240414,105070.0,105060.0,1.7298088]
[1749909582689,0.9240414,105070.0,105060.0,1.957306]
[1749909591498,0.98346962,105070.0,105060.0,1.957306]
[1749909591896,0.98346962,105070.0,105060.0,2.779746]
[1749909595101,0.98346962,105070.0,105060.0,1.824466]
[1749909595400,0.98346962,105070.0,105060.0,2.779306]
[1749909596490,0.98346962,105070.0,105060.0,2.71982192]
[1749909597202,0.98346962,105070.0,105060.0,2.77929898]
[1749909597600,0.98346962,105070.0,105060.0,2.71982192]
[1749909600403,0.98346962,105070.0,105060.0,2.49232472]
[1749909600604,0.98346962,105070.0,105060.0,2.71982192]
[1749909602897,0.98346962,105070.0,105060.0,2.77930443]
[1749909603197,0.98346962,105070.0,105060.0,1.82446443]
[1749909603397,1.01536962,105070.0,105060.0,2.77914443]
[1749909606714,0.98346962,105070.0,105060.0,2.77914443]
[1749909608603,0.75597242,105070.0,105060.0,3.00664163]
[1749909608807,0.75597242,105070.0,105060.0,3.30795912]
[1749909609109,0.75597242,105070.0,105060.0,3.08046192]
[1749909609301,0.6965442,105070.0,105060.0,3.08046192]
[1749909622918,0.6965442,105070.0,105060.0,3.30795912]
[1749909624618,0.6965442,105070.0,105060.0,3.32661334]
[1749909625916,0.6965442,105070.0,105060.0,3.09911614]
[1749909636423,0.1965442,105070.0,105060.0,3.09911614]
[1749909636931,0.1965442,105070.0,105060.0,3.32661334]
[1749909641131,0.1965442,105070.0,105060.0,3.23745002]
[1749909641332,0.1965442,105070.0,105060.0,3.32664353]
[1749909641722,0.1965442,105070.0,105060.0,3.23745002]
[1749909642636,0.1965442,105070.0,105060.0,3.32664433]
[1749909642827,0.1965442,105070.0,105060.0,3.23745002]
[1749909643235,0.1965442,105070.0,105060.0,2.78245562]
[1749909643534,0.1965442,105070.0,105060.0,3.23745002]
[1749909643928,0.1965442,105070.0,105060.0,3.00995282]
[1749909644538,0.1965442,105070.0,105060.0,3.23745002]
[1749909645232,0.1965442,105070.0,105060.0,3.00995282]
[1749909647741,0.1965442,105070.0,105060.0,3.12883725]
[1749909648243,0.1965442,105070.0,105060.0,3.00995282]
[1749909652849,0.1965442,105070.0,105060.0,3.09917386]
[1749909662851,0.1965442,105070.0,105060.0,3.00995282]
[1749909667165,0.1965442,105070.0,105060.0,3.12883725]
[1749909667565,0.1965442,105070.0,105060.0,3.35633445]
[1749909668265,0.1965442,105070.0,105060.0,3.23745002]
[1749909673368,0.0062809,105070.0,105060.0,3.35633445]
[1749909673670,0.1965442,105070.0,105060.0,3.35633445]
[1749909676070,0.0062809,105070.0,105060.0,3.35633445]
[1749909679774,0.0062809,105070.0,105060.0,2.90134005]
[1749909679962,0.0062809,105070.0,105060.0,3.35633445]
[1749909689382,0.1965441,105070.0,105060.0,3.35633445]
[1749909689579,0.4240413,105070.0,105060.0,2.86774005]
[1749909689781,0.4872413,105070.0,105060.0,3.00164628]
[1749909689982,0.5177413,105070.0,105060.0,3.00164628]
[1749909693082,0.5177413,105070.0,105060.0,1.83983066]
[1749909693281,0.5177413,105070.0,105060.0,2.54484986]
[1749909693582,0.5177413,105070.0,105060.0,1.92376846]
[1749909693778,0.5177413,105070.0,105060.0,2.11404986]
[1749909694485,0.5177413,105070.0,105060.0,1.16120986]
[1749909694782,0.5177413,105070.0,105060.0,2.11404986]
[1749909696382,0.5177413,105070.0,105060.0,2.0249564]
[1749909697383,0.5177413,105070.0,105060.0,2.2524536]
[1749909701090,0.5177413,105070.0,105060.0,2.29697929]
[1749909701580,0.2297441,105070.0,105060.0,2.9944536]
[1749909702690,0.2297441,105070.0,105060.0,3.0244536]
[1749909705793,0.2297441,105070.0,105060.0,3.0567536]
[1749909706192,0.4572413,105070.0,105060.0,3.0567536]
[1749909707797,0.4572413,105070.0,105060.0,2.7067536]
[1749909707997,0.4572413,105070.0,105060.0,3.0267536]
[1749909709998,0.4572413,105070.0,105060.0,2.4792564]
[1749909710197,0.4572413,105070.0,105060.0,3.0767536]
[1749909710499,0.4572413,105070.0,105060.0,3.16584706]
[1749909715600,0.4240413,105070.0,105060.0,3.16584706]
[1749909716201,0.4240413,105070.0,105060.0,3.10645206]
[1749909719102,0.1965441,105070.0,105060.0,3.10645206]
[1749909722213,0.1965441,105070.0,105060.0,2.73645206]
[1749909722512,0.1965441,105070.0,105060.0,3.11645206]
[1749909724514,0.19240575,105070.0,105060.0,3.11645206]
[1749909725615,0.1965441,105070.0,105060.0,3.11645206]
[1749909727725,0.1965441,105070.0,105060.0,3.34394926]
[1749909727923,0.1965441,105070.0,105060.0,3.11645206]
[1749909728218,0.1965441,105070.0,105060.0,3.2548558]
[1749909728518,0.1965441,105070.0,105060.0,3.0273586]
[1749909729021,0.1965441,105070.0,105060.0,2.6098614]
[1749909729221,0.1965441,105070.0,105060.0,2.8373586]
[1749909731528,0.1965441,105070.0,105060.0,3.0648558]
[1749909732319,0.1965441,105070.0,105060.0,3.18374023]
[1749909733728,0.0062809,105070.0,105060.0,3.18374023]
[1749909733927,0.1965441,105070.0,105060.0,3.18374023]
[1749909736631,0.19240575,105070.0,105060.0,3.18374023]
[1749909740731,0.19240575,105070.0,105060.0,3.0648558]
[1749909749040,0.19240575,105070.0,105060.0,2.6098614]
[1749909749239,0.19240575,105070.0,105060.0,3.0648558]
[1749909750539,0.19240575,105070.0,105060.0,2.8373586]
[1749909759055,0.19240575,105070.0,105060.0,2.95624303]
[1749909760150,0.19240575,105070.0,105060.0,2.95508303]
[1749909761053,0.1965441,105070.0,105060.0,2.95508303]
[1749909763154,0.1965441,105070.0,105060.0,2.8361986]
[1749909763756,0.1965441,105070.0,105060.0,2.95508303]
[1749909765156,0.19240575,105070.0,105060.0,2.95508303]
[1749909765556,0.19240575,105070.0,105060.0,3.18258023]
[1749909768158,0.1965441,105070.0,105060.0,3.18258023]
[1749909769158,0.1965441,105070.0,105060.0,3.0636958]
[1749909769159,0.19240575,105070.0,105060.0,3.0636958]
[1749909769457,0.19240575,105070.0,105060.0,2.8361986]
[1749909770260,0.1965441,105070.0,105060.0,2.8361986]
[1749909771263,0.19240575,105070.0,105060.0,2.8361986]
[1749909772265,0.1965441,105070.0,105060.0,2.8361986]
[1749909772465,0.1965441,105070.0,105060.0,2.95508303]
[1749909774366,0.19240575,105070.0,105060.0,2.95508303]
[1749909775068,0.00214255,105070.0,105060.0,3.18258023]
[1749909775469,0.01716537,105080.0,105070.0,0.1902632]
[1749909775770,0.01678904,105080.0,105070.0,1.37350441]
[1749909775965,0.43706526,105100.0,105090.0,0.190227]
[1749909776167,0.60513424,105100.0,105090.0,2.97179358]
[1749909776367,0.37763704,105100.0,105090.0,3.06779358]
[1749909776771,0.87763704,105100.0,105090.0,3.15698244]
[1749909777169,0.89474051,105100.0,105090.0,3.06779358]
[1749909778070,0.89574051,105100.0,105090.0,3.06779358]
[1749909778570,0.89874051,105100.0,105090.0,3.06779358]
[1749909779173,0.89874051,105100.0,105090.0,3.11228881]
[1749909779377,0.39874051,105100.0,105090.0,3.11228881]
[1749909779577,0.36834051,105100.0,105090.0,3.12187085]
[1749909780377,0.36834051,105100.0,105090.0,3.11228881]
[1749909780578,0.59583771,105100.0,105090.0,2.88479161]
[1749909780879,0.59583771,105100.0,105090.0,3.11228881]
[1749909782173,0.62883771,105100.0,105090.0,2.75228881]
[1749909782981,0.62883771,105100.0,105090.0,1.40856881]
[1749909783176,0.65973771,105100.0,105090.0,2.29532881]
[1749909783576,0.65973771,105100.0,105090.0,1.05708223]
[1749909783781,0.65973771,105100.0,105090.0,2.23593943]
[1749909784484,0.66387606,105100.0,105090.0,2.23593943]
[1749909784882,0.66387606,105100.0,105090.0,2.00844223]
[1749909787386,0.66387606,105100.0,105090.0,1.05708223]
[1749909787585,0.66387606,105100.0,105090.0,2.00836223]
[1749909787884,0.69517606,105100.0,105090.0,2.00836223]
[1749909789982,1.05597606,105100.0,105090.0,0.86685523]
[1749909790183,1.05597606,105100.0,105090.0,2.00820223]
[1749909790184,1.08597606,105100.0,105090.0,2.00820223]
[1749909793387,1.08597606,105100.0,105090.0,0.86685523]
[1749909793587,1.08597606,105100.0,105090.0,1.81797523]
[1749909793980,1.08597606,105100.0,105080.0,0.51566868]
[1749909793981,0.190227,105090.0,105080.0,0.12157666]
[1749909794182,1.3890214,105090.0,105080.0,0.95122255]
[1749909794487,0.90095242,105090.0,105080.0,0.95122255]
[1749909794989,2.40095242,105090.0,105080.0,0.95122255]
[1749909795182,2.7215242,105090.0,105080.0,0.95122255]
[1749909795383,2.3415242,105090.0,105080.0,0.95122255]
[1749909796188,2.3425242,105090.0,105080.0,1.14146765]
[1749909796381,2.3455242,105090.0,105080.0,0.95122255]
[1749909797782,2.3767242,105090.0,105080.0,1.14146765]
[1749909798989,2.3767242,105090.0,105080.0,0.95122255]
[1749909799789,2.74086255,105090.0,105080.0,0.95122255]
[1749909799989,2.73086255,105090.0,105080.0,0.95122255]
[1749909800193,2.44017904,105090.0,105080.0,0.95122255]
[1749909800990,2.94017904,105090.0,105080.0,0.95122255]
[1749909802994,3.30017904,105090.0,105080.0,1.14146765]
[1749909803294,1.44017904,105090.0,105080.0,1.14146765]
[1749909805496,1.76017904,105090.0,105080.0,1.14146765]
[1749909805695,1.44017904,105090.0,105080.0,1.14146765]
[1749909806397,1.78017904,105090.0,105080.0,1.14146765]
[1749909806598,1.44017904,105090.0,105080.0,1.14146765]
[1749909806896,1.75017904,105090.0,105080.0,1.14146765]
[1749909807095,1.44017904,105090.0,105080.0,1.14146765]
[1749909807393,1.44017904,105090.0,105080.0,0.95122255]
[1749909808994,1.44017904,105090.0,105080.0,1.01312255]
[1749909809697,1.82017904,105090.0,105080.0,1.01312255]
[1749909809900,1.43604069,105090.0,105080.0,1.04562255]
[1749909810298,1.40484069,105090.0,105080.0,1.04562255]
[1749909810901,1.40897904,105090.0,105080.0,1.04562255]
[1749909811499,1.74897904,105090.0,105080.0,1.04562255]
[1749909811694,1.40897904,105090.0,105080.0,1.04562255]
[1749909811890,1.40484069,105090.0,105080.0,1.04562255]
[1749909812902,1.40897904,105090.0,105080.0,1.04562255]
[1749909814000,1.40484069,105090.0,105080.0,1.04562255]
[1749909815000,1.72484069,105090.0,105080.0,1.0497609]
[1749909815202,1.40484069,105090.0,105080.0,1.0497609]
[1749909815700,1.75484069,105090.0,105080.0,1.0497609]
[1749909815902,1.40484069,105090.0,105080.0,1.0497609]
[1749909816103,1.72484069,105090.0,105080.0,1.04562255]
[1749909816295,1.98233789,105090.0,105080.0,1.04562255]
[1749909816601,1.63233789,105090.0,105080.0,1.01312255]
[1749909816796,1.98233789,105090.0,105080.0,1.01312255]
[1749909816996,1.97647624,105090.0,105080.0,1.01312255]
[1749909817196,1.66647624,105090.0,105080.0,1.01312255]
[1749909817896,2.02647624,105090.0,105080.0,1.01312255]
[1749909818105,1.66647624,105090.0,105080.0,1.01312255]
[1749909818702,1.74897904,105090.0,105080.0,1.01312255]
[1749909818903,1.43897904,105090.0,105080.0,1.01312255]
[1749909819100,1.78897904,105090.0,105080.0,1.01312255]
[1749909819299,1.43897904,105090.0,105080.0,1.01312255]
[1749909821697,1.74897904,105090.0,105080.0,1.01312255]
[1749909821903,1.43897904,105090.0,105080.0,1.01312255]
[1749909822106,1.52812137,105090.0,105080.0,1.01312255]
[1749909823106,1.52812137,105090.0,105080.0,1.07241505]
[1749909823403,1.46880488,105090.0,105080.0,1.07241505]
[1749909823600,1.79880488,105090.0,105080.0,1.07241505]
[1749909823905,1.46880488,105090.0,105080.0,1.07241505]
[1749909829209,1.46880488,105090.0,105080.0,0.12133505]
[1749909829396,1.46880488,105090.0,105080.0,0.30021505]
[1749909829594,1.46880488,105090.0,105080.0,1.07237505]
[1749909831406,2.07630208,105090.0,105080.0,0.05943505]
[1749909831709,2.32006475,105090.0,105070.0,0.17888]
[1749909831902,2.60506858,105080.0,105070.0,0.17888]
[1749909832208,2.91506858,105080.0,105070.0,0.17888]
[1749909832405,2.60506858,105080.0,105070.0,0.17888]
[1749909832596,0.1902633,105070.0,105060.0,1.1551925]
[1749909832799,1.26723908,105070.0,105060.0,0.88418622]
[1749909833102,1.02050458,105070.0,105060.0,0.17888]
[1749909834106,0.931273,105070.0,105060.0,0.17888]